[Event "Early-Titled-Tuesday-Blitz-March-26-2024"]
[Site "Chess.com"]
[Date "2024.03.26"]
[Round "10"]
[White "BestestBP"]
[Black "The_Straightforward_Rook"]
[Result "0-1"]
[WhiteElo "2213"]
[BlackElo "2399"]
[TimeControl "180+1"]
[EndTime "9:54:07 PDT"]
[Termination "The_Straightforward_Rook won by checkmate"]

1. c4 {[%clk 0:03:00.9]} 1... c6 {[%clk 0:02:58.5]} 2. e4 {[%clk 0:02:54.3]}
2... d5 {[%clk 0:02:59.4]} 3. exd5 {[%clk 0:02:41.9]} 3... cxd5 {[%clk
0:03:00.3]} 4. cxd5 {[%clk 0:02:42.5]} 4... Nf6 {[%clk 0:02:59.5]} 5. Nc3 {[%clk
0:02:40.8]} 5... Nxd5 {[%clk 0:02:58.4]} 6. d4 {[%clk 0:02:41.1]} 6... Nxc3
{[%clk 0:02:57.8]} 7. bxc3 {[%clk 0:02:40.7]} 7... e6 {[%clk 0:02:58.7]} 8. Nf3
{[%clk 0:02:40.5]} 8... Qc7 {[%clk 0:02:58.4]} 9. Bb5+ {[%clk 0:02:33.6]} 9...
Bd7 {[%clk 0:02:57.7]} 10. Bxd7+ {[%clk 0:02:33]} 10... Nxd7 {[%clk 0:02:58.6]}
11. O-O {[%clk 0:02:31.1]} 11... Bd6 {[%clk 0:02:55.6]} 12. Qd3 {[%clk
0:02:27.6]} 12... O-O {[%clk 0:02:54.5]} 13. Rb1 {[%clk 0:02:24.2]} 13... b6
{[%clk 0:02:51.2]} 14. h3 {[%clk 0:02:17.2]} 14... Rac8 {[%clk 0:02:50.7]} 15.
Bd2 {[%clk 0:02:11.1]} 15... Rfd8 {[%clk 0:02:50.7]} 16. Ng5 {[%clk 0:02:07.6]}
16... Nf8 {[%clk 0:02:48.3]} 17. Rfc1 {[%clk 0:01:59.2]} 17... Bh2+ {[%clk
0:02:46.1]} 18. Kh1 {[%clk 0:01:58.3]} 18... Bf4 {[%clk 0:02:46.7]} 19. c4
{[%clk 0:01:41.1]} 19... Bxd2 {[%clk 0:02:35.2]} 20. Qxd2 {[%clk 0:01:39.6]}
20... Qe5 {[%clk 0:02:17.9]} 21. Nf3 {[%clk 0:01:29.5]} 21... Qf5 {[%clk
0:02:13.3]} 22. Rb2 {[%clk 0:01:10.9]} 22... Ng6 {[%clk 0:02:08.8]} 23. Rbc2
{[%clk 0:01:08.5]} 23... h6 {[%clk 0:02:05.5]} 24. Qe3 {[%clk 0:01:05.7]} 24...
Nf4 {[%clk 0:02:03]} 25. Kh2 {[%clk 0:00:36.9]} 25... g5 {[%clk 0:02:00.6]} 26.
c5 {[%clk 0:00:29.6]} 26... Nd5 {[%clk 0:01:57.3]} 27. Qe5 {[%clk 0:00:24.4]}
27... Nb4 {[%clk 0:01:18.4]} 28. Qxf5 {[%clk 0:00:10.7]} 28... exf5 {[%clk
0:01:19.3]} 29. Rd2 {[%clk 0:00:11.2]} 29... f6 {[%clk 0:01:11.8]} 30. a3 {[%clk
0:00:10.3]} 30... Nd5 {[%clk 0:01:11.1]} 31. c6 {[%clk 0:00:08.1]} 31... Nc7
{[%clk 0:01:06.5]} 32. Rcd1 {[%clk 0:00:05.7]} 32... Rd5 {[%clk 0:01:05.4]} 33.
Rc1 {[%clk 0:00:05.8]} 33... Rcd8 {[%clk 0:01:05.8]} 34. Re2 {[%clk 0:00:04.1]}
34... Kf7 {[%clk 0:01:04.5]} 35. Rce1 {[%clk 0:00:03.2]} 35... Re8 {[%clk
0:01:03.5]} 36. Rxe8 {[%clk 0:00:03.2]} 36... Nxe8 {[%clk 0:01:04.4]} 37. Rc1
{[%clk 0:00:02.6]} 37... Nc7 {[%clk 0:01:03.9]} 38. Rc2 {[%clk 0:00:03.3]} 38...
Ke6 {[%clk 0:01:02.2]} 39. Re2+ {[%clk 0:00:03]} 39... Kd6 {[%clk 0:01:00.7]}
40. Rc2 {[%clk 0:00:03.9]} 40... g4 {[%clk 0:00:49.1]} 41. Nh4 {[%clk
0:00:03.2]} 41... Nb5 {[%clk 0:00:39]} 42. Kg3 {[%clk 0:00:03.7]} 42... Kc7
{[%clk 0:00:35.2]} 43. Kf4 {[%clk 0:00:03.5]} 43... Nxd4 {[%clk 0:00:34.8]} 44.
Rc1 {[%clk 0:00:04]} 44... Ne2+ {[%clk 0:00:32.6]} 45. Ke3 {[%clk 0:00:04.6]}
45... Nxc1 {[%clk 0:00:32.9]} 46. hxg4 {[%clk 0:00:04.9]} 46... fxg4 {[%clk
0:00:32.7]} 47. f3 {[%clk 0:00:05.8]} 47... gxf3 {[%clk 0:00:32.5]} 48. Kxf3
{[%clk 0:00:06.6]} 48... Kxc6 {[%clk 0:00:32.5]} 49. Ng6 {[%clk 0:00:06.6]}
49... Rd3+ {[%clk 0:00:30.7]} 50. Ke4 {[%clk 0:00:06.3]} 50... Rxa3 {[%clk
0:00:31.6]} 51. Ne7+ {[%clk 0:00:06.3]} 51... Kd6 {[%clk 0:00:31.4]} 52. Nf5+
{[%clk 0:00:06.8]} 52... Ke6 {[%clk 0:00:31.6]} 53. Nxh6 {[%clk 0:00:07.4]}
53... Rg3 {[%clk 0:00:29.5]} 54. Nf5 {[%clk 0:00:06]} 54... Rxg2 {[%clk
0:00:29]} 55. Nd4+ {[%clk 0:00:05.8]} 55... Kd7 {[%clk 0:00:29.3]} 56. Nb5
{[%clk 0:00:05.8]} 56... a5 {[%clk 0:00:29.1]} 57. Kd5 {[%clk 0:00:04.3]} 57...
Rg5+ {[%clk 0:00:28.5]} 58. Kc4 {[%clk 0:00:04.8]} 58... Rxb5 {[%clk 0:00:29.4]}
59. Kxb5 {[%clk 0:00:05.1]} 59... f5 {[%clk 0:00:30.3]} 60. Kxb6 {[%clk
0:00:05.7]} 60... f4 {[%clk 0:00:31.2]} 61. Kxa5 {[%clk 0:00:06.6]} 61... f3
{[%clk 0:00:32.1]} 62. Kb4 {[%clk 0:00:07.5]} 62... f2 {[%clk 0:00:32.9]} 63.
Kc3 {[%clk 0:00:08.4]} 63... f1=Q {[%clk 0:00:33.8]} 64. Kc2 {[%clk 0:00:09.3]}
64... Qh1 {[%clk 0:00:33]} 65. Kd2 {[%clk 0:00:09.7]} 65... Kd6 {[%clk
0:00:31.9]} 66. Kc2 {[%clk 0:00:10.6]} 66... Kc5 {[%clk 0:00:32.4]} 67. Kd2
{[%clk 0:00:11.5]} 67... Kc4 {[%clk 0:00:32.6]} 68. Kc2 {[%clk 0:00:08.4]} 68...
Qh2+ {[%clk 0:00:32.5]} 69. Kxc1 {[%clk 0:00:08]} 69... Kc3 {[%clk 0:00:32.2]}
70. Kd1 {[%clk 0:00:08.9]} 70... Qd2# {[%clk 0:00:32.4]} 0-1

[Event "Early-Titled-Tuesday-Blitz-March-26-2024"]
[Site "Chess.com"]
[Date "2024.03.26"]
[Round "10"]
[White "DenLaz"]
[Black "Firouzja2003"]
[Result "1-0"]
[WhiteElo "3108"]
[BlackElo "3091"]
[TimeControl "180+1"]
[EndTime "9:54:11 PDT"]
[Termination "DenLaz won by resignation"]

1. d4 {[%clk 0:03:00.9]} 1... Nf6 {[%clk 0:02:58.6]} 2. c4 {[%clk 0:03:01.6]}
2... g6 {[%clk 0:02:58.4]} 3. g3 {[%clk 0:03:02.3]} 3... Bg7 {[%clk 0:02:58.2]}
4. Bg2 {[%clk 0:03:02.8]} 4... O-O {[%clk 0:02:58.8]} 5. Nc3 {[%clk 0:03:03.4]}
5... d6 {[%clk 0:02:58.6]} 6. Nf3 {[%clk 0:03:04.1]} 6... c6 {[%clk 0:02:52.6]}
7. e4 {[%clk 0:03:03.3]} 7... e5 {[%clk 0:02:48.9]} 8. O-O {[%clk 0:03:00.6]}
8... Bg4 {[%clk 0:02:42.5]} 9. d5 {[%clk 0:02:59.9]} 9... cxd5 {[%clk 0:02:40]}
10. cxd5 {[%clk 0:03:00.2]} 10... Na6 {[%clk 0:02:38.2]} 11. h3 {[%clk
0:02:59.9]} 11... Bd7 {[%clk 0:02:37.1]} 12. Be3 {[%clk 0:03:00.3]} 12... Rc8
{[%clk 0:02:32.3]} 13. Rc1 {[%clk 0:02:59.8]} 13... Nc5 {[%clk 0:02:31.4]} 14.
Ne1 {[%clk 0:02:52.6]} 14... a5 {[%clk 0:02:29.8]} 15. Nd3 {[%clk 0:02:44.9]}
15... b6 {[%clk 0:02:29.6]} 16. a3 {[%clk 0:02:42.6]} 16... a4 {[%clk 0:01:51]}
17. Nxc5 {[%clk 0:02:40]} 17... bxc5 {[%clk 0:01:51.9]} 18. Nxa4 {[%clk
0:02:39.3]} 18... Rb8 {[%clk 0:01:51.8]} 19. Rb1 {[%clk 0:02:33.5]} 19... Qa5
{[%clk 0:01:46.3]} 20. Nc3 {[%clk 0:02:33]} 20... Rb7 {[%clk 0:01:46.7]} 21. Qd2
{[%clk 0:02:15.2]} 21... Rfb8 {[%clk 0:01:45.5]} 22. Kh2 {[%clk 0:02:05.4]}
22... Rb3 {[%clk 0:01:44]} 23. Rfc1 {[%clk 0:01:55.1]} 23... h5 {[%clk
0:01:40.9]} 24. Bf1 {[%clk 0:01:50.4]} 24... Qb6 {[%clk 0:01:25.3]} 25. Bc4
{[%clk 0:01:33]} 25... Qc7 {[%clk 0:00:35.6]} 26. Bxb3 {[%clk 0:01:27.8]} 26...
Rxb3 {[%clk 0:00:36.5]} 27. f3 {[%clk 0:01:27.8]} 27... h4 {[%clk 0:00:31.5]}
28. g4 {[%clk 0:01:27.6]} 28... Nh7 {[%clk 0:00:32.1]} 29. Nd1 {[%clk
0:01:22.9]} 29... f5 {[%clk 0:00:24.6]} 30. Rc3 {[%clk 0:01:23.4]} 30... Rb8
{[%clk 0:00:21.9]} 31. b4 {[%clk 0:01:18.5]} 31... fxe4 {[%clk 0:00:16.7]} 32.
fxe4 {[%clk 0:01:18.7]} 32... Qd8 {[%clk 0:00:14.4]} 33. Rb2 {[%clk 0:01:11.4]}
33... cxb4 {[%clk 0:00:11.1]} 34. Rxb4 {[%clk 0:01:11.4]} 34... Ra8 {[%clk
0:00:11.6]} 35. Rb7 {[%clk 0:01:09.9]} 35... Bc8 {[%clk 0:00:03.5]} 36. Rbc7
{[%clk 0:01:03.2]} 36... Bf6 {[%clk 0:00:02.7]} 37. Nf2 {[%clk 0:01:01.1]} 37...
Bd7 {[%clk 0:00:02]} 38. Qb2 {[%clk 0:00:51.9]} 38... Be8 {[%clk 0:00:02.1]} 39.
Rb7 {[%clk 0:00:40.5]} 39... Bg5 {[%clk 0:00:02.5]} 40. Qd2 {[%clk 0:00:38.2]}
40... Qf6 {[%clk 0:00:02.7]} 41. Rbc7 {[%clk 0:00:27.9]} 41... Bf4+ {[%clk
0:00:02]} 42. Bxf4 {[%clk 0:00:26.7]} 42... exf4 {[%clk 0:00:02.9]} 43. Rc8
{[%clk 0:00:27.3]} 43... Rxc8 {[%clk 0:00:03.2]} 44. Rxc8 {[%clk 0:00:28.2]}
44... Ng5 {[%clk 0:00:03.1]} 45. Qc3 {[%clk 0:00:27.5]} 45... Qe7 {[%clk
0:00:03.4]} 46. a4 {[%clk 0:00:21.9]} 46... Nxe4 {[%clk 0:00:02.4]} 47. Qe1
{[%clk 0:00:18.1]} 47... Qd7 {[%clk 0:00:02.4]} 48. Rxe8+ {[%clk 0:00:17.4]}
48... Qxe8 {[%clk 0:00:03.3]} 49. Qxe4 {[%clk 0:00:18.2]} 49... Qf7 {[%clk
0:00:03.4]} 50. a5 {[%clk 0:00:17]} 50... Qa7 {[%clk 0:00:04.3]} 51. Qxg6+
{[%clk 0:00:16.4]} 51... Kh8 {[%clk 0:00:04.1]} 52. Qh6+ {[%clk 0:00:16.9]}
52... Kg8 {[%clk 0:00:04.7]} 53. Qxf4 {[%clk 0:00:17.1]} 53... Qxa5 {[%clk
0:00:04.6]} 54. g5 {[%clk 0:00:17.6]} 54... Qxd5 {[%clk 0:00:04.5]} 55. Qxh4
{[%clk 0:00:17.8]} 55... Qe5+ {[%clk 0:00:04.6]} 56. Qg3 {[%clk 0:00:18.4]}
56... Qe2 {[%clk 0:00:05.1]} 57. Kg2 {[%clk 0:00:16.8]} 57... d5 {[%clk
0:00:05.7]} 58. Qf3 {[%clk 0:00:17.3]} 58... Qe5 {[%clk 0:00:06.1]} 59. h4
{[%clk 0:00:17.5]} 59... d4 {[%clk 0:00:06.7]} 60. Ng4 {[%clk 0:00:17.8]} 60...
Qe1 {[%clk 0:00:07]} 61. Qd5+ {[%clk 0:00:16]} 61... Kg7 {[%clk 0:00:06.5]} 62.
Qxd4+ {[%clk 0:00:16]} 62... Kg6 {[%clk 0:00:07]} 63. Ne5+ {[%clk 0:00:15.7]}
63... Kf5 {[%clk 0:00:05.7]} 64. Qf2+ {[%clk 0:00:16.1]} 1-0

[Event "Early-Titled-Tuesday-Blitz-March-26-2024"]
[Site "Chess.com"]
[Date "2024.03.26"]
[Round "10"]
[White "superchess02"]
[Black "VladimirKramnik"]
[Result "1-0"]
[WhiteElo "2872"]
[BlackElo "2981"]
[TimeControl "180+1"]
[EndTime "9:54:12 PDT"]
[Termination "superchess02 won on time"]

1. d4 {[%clk 0:03:00.9]} 1... Nf6 {[%clk 0:02:59.1]} 2. c4 {[%clk 0:03:01.5]}
2... e6 {[%clk 0:02:59.2]} 3. Nc3 {[%clk 0:03:01.8]} 3... d5 {[%clk 0:02:58.1]}
4. Bg5 {[%clk 0:03:01.4]} 4... Be7 {[%clk 0:02:57]} 5. e3 {[%clk 0:03:01.6]}
5... h6 {[%clk 0:02:57.3]} 6. Bh4 {[%clk 0:03:01.7]} 6... O-O {[%clk 0:02:57.4]}
7. Nf3 {[%clk 0:03:02.1]} 7... b6 {[%clk 0:02:56.9]} 8. Qb3 {[%clk 0:03:00.9]}
8... Bb7 {[%clk 0:02:50.8]} 9. Bxf6 {[%clk 0:03:01]} 9... Bxf6 {[%clk
0:02:50.9]} 10. cxd5 {[%clk 0:03:01.3]} 10... exd5 {[%clk 0:02:51.1]} 11. Rd1
{[%clk 0:03:00.7]} 11... Re8 {[%clk 0:02:50.6]} 12. Bd3 {[%clk 0:02:58.8]} 12...
c5 {[%clk 0:02:50.6]} 13. dxc5 {[%clk 0:02:58.9]} 13... Nd7 {[%clk 0:02:51.2]}
14. c6 {[%clk 0:02:56.2]} 14... Bxc6 {[%clk 0:02:49.9]} 15. O-O {[%clk
0:02:54.1]} 15... Nc5 {[%clk 0:02:49]} 16. Qc2 {[%clk 0:02:54.7]} 16... Rc8
{[%clk 0:02:42.5]} 17. Bf5 {[%clk 0:02:51.1]} 17... Rc7 {[%clk 0:02:31.3]} 18.
Nd4 {[%clk 0:02:50.8]} 18... Ba8 {[%clk 0:02:13.7]} 19. Rd2 {[%clk 0:02:50.7]}
19... g6 {[%clk 0:02:10.3]} 20. Bd3 {[%clk 0:02:40.4]} 20... Bxd4 {[%clk
0:01:57.9]} 21. exd4 {[%clk 0:02:41.3]} 21... Ne6 {[%clk 0:01:57.8]} 22. Bb5
{[%clk 0:02:30.6]} 22... Rf8 {[%clk 0:01:57.6]} 23. Qd3 {[%clk 0:02:28.2]} 23...
Qg5 {[%clk 0:01:53.1]} 24. Ne2 {[%clk 0:02:27.9]} 24... Qf6 {[%clk 0:01:42.7]}
25. f4 {[%clk 0:02:19.1]} 25... Ng7 {[%clk 0:01:42.4]} 26. Ng3 {[%clk 0:02:19]}
26... Re7 {[%clk 0:01:31.8]} 27. f5 {[%clk 0:02:16.1]} 27... g5 {[%clk
0:01:30.4]} 28. Ba4 {[%clk 0:02:15.6]} 28... h5 {[%clk 0:01:22.2]} 29. Qf3
{[%clk 0:01:29.2]} 29... h4 {[%clk 0:01:12.9]} 30. Ne2 {[%clk 0:01:29.5]} 30...
Bb7 {[%clk 0:01:00.3]} 31. Nc3 {[%clk 0:01:10.4]} 31... Rd8 {[%clk 0:00:56.1]}
32. Bb3 {[%clk 0:00:56.4]} 32... Red7 {[%clk 0:00:54.2]} 33. Ba4 {[%clk
0:00:47.8]} 33... Re7 {[%clk 0:00:49.1]} 34. Bb3 {[%clk 0:00:47.8]} 34... Ne8
{[%clk 0:00:20.1]} 35. Bxd5 {[%clk 0:00:41.1]} 35... Ba6 {[%clk 0:00:20.1]} 36.
Rfd1 {[%clk 0:00:34.9]} 36... Qd6 {[%clk 0:00:17.4]} 37. Qh5 {[%clk 0:00:23.3]}
37... Qf6 {[%clk 0:00:06.2]} 38. Rf2 {[%clk 0:00:21.4]} 38... Ng7 {[%clk
0:00:05.3]} 39. Qf3 {[%clk 0:00:20.6]} 39... Ne8 {[%clk 0:00:02]} 40. Ne4 {[%clk
0:00:19.4]} 40... Rxe4 {[%clk 0:00:02]} 41. Bxe4 {[%clk 0:00:19.7]} 41... Kg7
{[%clk 0:00:02.1]} 42. h3 {[%clk 0:00:15.9]} 42... Nd6 {[%clk 0:00:02.1]} 43.
Bd3 {[%clk 0:00:16.2]} 43... Bb7 {[%clk 0:00:01.7]} 44. Qg4 {[%clk 0:00:16.3]}
44... Re8 {[%clk 0:00:02.1]} 45. Re2 {[%clk 0:00:16.2]} 45... Rxe2 {[%clk
0:00:02.3]} 46. Bxe2 {[%clk 0:00:16.4]} 46... Kh6 {[%clk 0:00:02.7]} 47. Qh5+
{[%clk 0:00:16.1]} 47... Kg7 {[%clk 0:00:03.2]} 48. Qg4 {[%clk 0:00:16.4]} 48...
Bd5 {[%clk 0:00:03.4]} 49. a3 {[%clk 0:00:15.8]} 49... Be4 {[%clk 0:00:03.3]}
50. Bd3 {[%clk 0:00:09.4]} 50... Qxd4+ {[%clk 0:00:03]} 51. Kh1 {[%clk
0:00:09.3]} 51... f6 {[%clk 0:00:03.2]} 52. Bxe4 {[%clk 0:00:09.4]} 52... Qxe4
{[%clk 0:00:02.9]} 53. Qxe4 {[%clk 0:00:07.7]} 53... Nxe4 {[%clk 0:00:03.3]} 54.
Rd7+ {[%clk 0:00:08.4]} 54... Kh6 {[%clk 0:00:03.1]} 55. Rxa7 {[%clk 0:00:09.1]}
55... Ng3+ {[%clk 0:00:03.1]} 56. Kg1 {[%clk 0:00:09.7]} 56... Nxf5 {[%clk
0:00:03.8]} 57. Rb7 {[%clk 0:00:10.2]} 57... Nd4 {[%clk 0:00:03.5]} 58. Rxb6
{[%clk 0:00:10.5]} 58... Kg6 {[%clk 0:00:04.1]} 59. a4 {[%clk 0:00:10.9]} 1-0

[Event "Early-Titled-Tuesday-Blitz-March-26-2024"]
[Site "Chess.com"]
[Date "2024.03.26"]
[Round "10"]
[White "Matibar"]
[Black "azikom"]
[Result "1/2-1/2"]
[WhiteElo "2715"]
[BlackElo "2621"]
[TimeControl "180+1"]
[EndTime "9:54:16 PDT"]
[Termination "Game drawn - insufficient material"]

1. b3 {[%clk 0:02:59.6]} 1... d5 {[%clk 0:02:59.7]} 2. Bb2 {[%clk 0:02:59.9]}
2... Nf6 {[%clk 0:03:00.3]} 3. e3 {[%clk 0:02:59.8]} 3... Bg4 {[%clk 0:02:59.1]}
4. f3 {[%clk 0:02:59.2]} 4... Bf5 {[%clk 0:02:53.4]} 5. Ne2 {[%clk 0:03:00.1]}
5... c5 {[%clk 0:02:51.5]} 6. Ng3 {[%clk 0:02:59.6]} 6... Bg6 {[%clk 0:02:48.1]}
7. Bb5+ {[%clk 0:02:59.5]} 7... Nbd7 {[%clk 0:02:42.4]} 8. Nc3 {[%clk
0:02:55.4]} 8... a6 {[%clk 0:02:41.6]} 9. Bxd7+ {[%clk 0:02:48.6]} 9... Qxd7
{[%clk 0:02:41.5]} 10. Na4 {[%clk 0:02:48.3]} 10... Qc7 {[%clk 0:02:24.2]} 11.
O-O {[%clk 0:02:32.1]} 11... e6 {[%clk 0:02:23.8]} 12. Bxf6 {[%clk 0:02:25.1]}
12... gxf6 {[%clk 0:02:23.3]} 13. d3 {[%clk 0:02:24.4]} 13... h5 {[%clk
0:02:19.9]} 14. f4 {[%clk 0:02:20.8]} 14... h4 {[%clk 0:02:18.9]} 15. Nh1 {[%clk
0:02:20.1]} 15... Bd6 {[%clk 0:02:14.2]} 16. Qf3 {[%clk 0:02:09.5]} 16... O-O-O
{[%clk 0:02:12.4]} 17. Nf2 {[%clk 0:01:51.8]} 17... Kb8 {[%clk 0:02:11.4]} 18.
Rae1 {[%clk 0:00:50]} 18... f5 {[%clk 0:02:09.8]} 19. Nh3 {[%clk 0:00:37.4]}
19... Bh5 {[%clk 0:02:07.5]} 20. Qf2 {[%clk 0:00:37.7]} 20... Rdg8 {[%clk
0:01:59.9]} 21. Kh1 {[%clk 0:00:34.1]} 21... Bg4 {[%clk 0:01:59.8]} 22. Ng1
{[%clk 0:00:34.2]} 22... h3 {[%clk 0:01:55.8]} 23. g3 {[%clk 0:00:34]} 23... Qc6
{[%clk 0:01:41]} 24. Nf3 {[%clk 0:00:34.2]} 24... Rd8 {[%clk 0:01:26.6]} 25. Nb2
{[%clk 0:00:33.4]} 25... Bc7 {[%clk 0:01:24]} 26. Kg1 {[%clk 0:00:31.7]} 26...
Ba5 {[%clk 0:01:23.6]} 27. Rb1 {[%clk 0:00:31.6]} 27... f6 {[%clk 0:01:21.3]}
28. Nd1 {[%clk 0:00:30]} 28... Rhe8 {[%clk 0:01:19.3]} 29. c3 {[%clk 0:00:30.2]}
29... e5 {[%clk 0:01:18.8]} 30. b4 {[%clk 0:00:30.3]} 30... cxb4 {[%clk
0:01:17.9]} 31. cxb4 {[%clk 0:00:30.6]} 31... Bb6 {[%clk 0:01:18.2]} 32. d4
{[%clk 0:00:23.9]} 32... exf4 {[%clk 0:01:14.6]} 33. exf4 {[%clk 0:00:20.1]}
33... Re4 {[%clk 0:01:13.6]} 34. Kh1 {[%clk 0:00:19.8]} 34... Rde8 {[%clk
0:01:12.3]} 35. Rb2 {[%clk 0:00:17.5]} 35... Qc4 {[%clk 0:01:08.6]} 36. Rc2
{[%clk 0:00:17.2]} 36... Bxf3+ {[%clk 0:00:59.5]} 37. Qxf3 {[%clk 0:00:17.2]}
37... Qxf1+ {[%clk 0:00:55.9]} 38. Qxf1 {[%clk 0:00:18.1]} 38... Re1 {[%clk
0:00:55.8]} 39. Kg1 {[%clk 0:00:18.2]} 39... Bxd4+ {[%clk 0:00:55.4]} 40. Nf2
{[%clk 0:00:18.6]} 40... Rxf1+ {[%clk 0:00:50]} 41. Kxf1 {[%clk 0:00:18.5]}
41... Bxf2 {[%clk 0:00:49.7]} 42. Kxf2 {[%clk 0:00:19.4]} 42... Re4 {[%clk
0:00:48.7]} 43. a3 {[%clk 0:00:19.6]} 43... Rc4 {[%clk 0:00:43.3]} 44. Re2
{[%clk 0:00:15.8]} 44... Rc3 {[%clk 0:00:42.7]} 45. Re6 {[%clk 0:00:16]} 45...
Rc2+ {[%clk 0:00:42.3]} 46. Ke3 {[%clk 0:00:15.2]} 46... Rxh2 {[%clk 0:00:41.4]}
47. Rxf6 {[%clk 0:00:15.5]} 47... Rb2 {[%clk 0:00:42]} 48. Kd4 {[%clk
0:00:15.3]} 48... Rb3 {[%clk 0:00:40.2]} 49. Rh6 {[%clk 0:00:14.8]} 49... Rxg3
{[%clk 0:00:38.1]} 50. a4 {[%clk 0:00:15]} 50... Rb3 {[%clk 0:00:35.6]} 51. b5
{[%clk 0:00:14.5]} 51... axb5 {[%clk 0:00:35.5]} 52. axb5 {[%clk 0:00:15.4]}
52... Rxb5 {[%clk 0:00:30.5]} 53. Rxh3 {[%clk 0:00:14.8]} 53... Kc7 {[%clk
0:00:30.5]} 54. Rh6 {[%clk 0:00:14.3]} 54... Rb4+ {[%clk 0:00:29.5]} 55. Ke5
{[%clk 0:00:14.6]} 55... d4 {[%clk 0:00:29.7]} 56. Rh3 {[%clk 0:00:13.2]} 56...
Kc6 {[%clk 0:00:27.3]} 57. Kxf5 {[%clk 0:00:13.6]} 57... Kd5 {[%clk 0:00:27.6]}
58. Rh7 {[%clk 0:00:12.2]} 58... b5 {[%clk 0:00:26.4]} 59. Rd7+ {[%clk
0:00:12.1]} 59... Kc5 {[%clk 0:00:25]} 60. Ke5 {[%clk 0:00:11.9]} 60... Rb1
{[%clk 0:00:17.7]} 61. Rxd4 {[%clk 0:00:11.4]} 61... Re1+ {[%clk 0:00:17.3]} 62.
Re4 {[%clk 0:00:11.8]} 62... Rxe4+ {[%clk 0:00:17.2]} 63. Kxe4 {[%clk
0:00:12.7]} 63... b4 {[%clk 0:00:15.8]} 64. Kd3 {[%clk 0:00:12.9]} 64... Kd5
{[%clk 0:00:16]} 65. f5 {[%clk 0:00:12.8]} 65... Ke5 {[%clk 0:00:15.7]} 66. Kc4
{[%clk 0:00:13.1]} 66... b3 {[%clk 0:00:15.8]} 67. Kxb3 {[%clk 0:00:12.9]} 67...
Kxf5 {[%clk 0:00:15.6]} 1/2-1/2

[Event "Early-Titled-Tuesday-Blitz-March-26-2024"]
[Site "Chess.com"]
[Date "2024.03.26"]
[Round "10"]
[White "sansanathalia"]
[Black "tetrix83"]
[Result "1/2-1/2"]
[WhiteElo "2439"]
[BlackElo "2620"]
[TimeControl "180+1"]
[EndTime "9:54:18 PDT"]
[Termination "Game drawn by stalemate"]

1. d4 {[%clk 0:03:00.9]} 1... Nf6 {[%clk 0:02:43.8]} 2. Nf3 {[%clk 0:03:00.1]}
2... g6 {[%clk 0:02:43.8]} 3. e3 {[%clk 0:02:58.9]} 3... Bg7 {[%clk 0:02:43.8]}
4. Be2 {[%clk 0:02:56.9]} 4... O-O {[%clk 0:02:44.7]} 5. O-O {[%clk 0:02:51.2]}
5... d6 {[%clk 0:02:45.6]} 6. Nbd2 {[%clk 0:02:47]} 6... Nbd7 {[%clk 0:02:46.5]}
7. b3 {[%clk 0:02:36.7]} 7... e5 {[%clk 0:02:47.4]} 8. Bb2 {[%clk 0:02:31.3]}
8... e4 {[%clk 0:02:47.3]} 9. Ne1 {[%clk 0:02:26.8]} 9... Re8 {[%clk 0:02:47.6]}
10. c4 {[%clk 0:02:24.3]} 10... h5 {[%clk 0:02:45.3]} 11. Nc2 {[%clk 0:02:18]}
11... c6 {[%clk 0:02:43.2]} 12. b4 {[%clk 0:02:08.2]} 12... Nf8 {[%clk 0:02:39]}
13. Nb3 {[%clk 0:02:03]} 13... h4 {[%clk 0:02:25.4]} 14. f3 {[%clk 0:01:48.8]}
14... h3 {[%clk 0:02:24.3]} 15. g3 {[%clk 0:01:47.3]} 15... exf3 {[%clk
0:02:24.2]} 16. Bxf3 {[%clk 0:01:46.1]} 16... N8h7 {[%clk 0:02:24.7]} 17. Qd3
{[%clk 0:01:25.2]} 17... Bf5 {[%clk 0:02:20.6]} 18. e4 {[%clk 0:01:08.3]} 18...
Nxe4 {[%clk 0:02:18]} 19. Bxe4 {[%clk 0:01:06]} 19... Bxe4 {[%clk 0:02:14.8]}
20. Qd2 {[%clk 0:01:05.5]} 20... Qg5 {[%clk 0:02:07.8]} 21. Rf4 {[%clk
0:00:58.5]} 21... Bxc2 {[%clk 0:01:46.6]} 22. Qxc2 {[%clk 0:00:56.7]} 22... Re3
{[%clk 0:01:47]} 23. Raf1 {[%clk 0:00:45.3]} 23... Rae8 {[%clk 0:01:44.6]} 24.
R4f2 {[%clk 0:00:20.5]} 24... Qg4 {[%clk 0:01:41.4]} 25. Bc1 {[%clk 0:00:19.5]}
25... Re2 {[%clk 0:01:38.6]} 26. Qd3 {[%clk 0:00:18]} 26... Nf6 {[%clk
0:01:26.3]} 27. Bd2 {[%clk 0:00:12.2]} 27... Rxf2 {[%clk 0:01:06]} 28. Rxf2
{[%clk 0:00:12.7]} 28... Ne4 {[%clk 0:01:03.4]} 29. Rf4 {[%clk 0:00:13.1]} 29...
Qd1+ {[%clk 0:00:53.7]} 30. Rf1 {[%clk 0:00:12.7]} 30... Qh5 {[%clk 0:00:48.7]}
31. Re1 {[%clk 0:00:12.3]} 31... f5 {[%clk 0:00:46.8]} 32. Bf4 {[%clk 0:00:12]}
32... g5 {[%clk 0:00:40.8]} 33. Bc1 {[%clk 0:00:11.8]} 33... Qg4 {[%clk
0:00:40.1]} 34. d5 {[%clk 0:00:11.4]} 34... Be5 {[%clk 0:00:34.9]} 35. dxc6
{[%clk 0:00:10.5]} 35... bxc6 {[%clk 0:00:34.8]} 36. c5 {[%clk 0:00:10.5]} 36...
d5 {[%clk 0:00:31.2]} 37. Qe2 {[%clk 0:00:09.8]} 37... Qxe2 {[%clk 0:00:21.7]}
38. Rxe2 {[%clk 0:00:10.7]} 38... Nc3 {[%clk 0:00:20.6]} 39. Rc2 {[%clk
0:00:09.3]} 39... f4 {[%clk 0:00:18.9]} 40. gxf4 {[%clk 0:00:08.9]} 40... gxf4
{[%clk 0:00:19.5]} 41. Bxf4 {[%clk 0:00:09.2]} 41... Bxf4 {[%clk 0:00:17.8]} 42.
Rxc3 {[%clk 0:00:09.4]} 42... Be3+ {[%clk 0:00:09.1]} 43. Kf1 {[%clk 0:00:09.1]}
43... d4 {[%clk 0:00:09.7]} 44. Rd3 {[%clk 0:00:08.9]} 44... Rf8+ {[%clk
0:00:09.7]} 45. Ke1 {[%clk 0:00:09]} 45... Rf2 {[%clk 0:00:09.6]} 46. Nxd4
{[%clk 0:00:09.5]} 46... Bxd4 {[%clk 0:00:09.6]} 47. Rxd4 {[%clk 0:00:09.9]}
47... Rxa2 {[%clk 0:00:07.9]} 48. Rd2 {[%clk 0:00:08.4]} 48... Ra1+ {[%clk
0:00:06.7]} 49. Ke2 {[%clk 0:00:08.8]} 49... Kf7 {[%clk 0:00:06.9]} 50. Kf3
{[%clk 0:00:09]} 50... Ra3+ {[%clk 0:00:06.6]} 51. Kg4 {[%clk 0:00:09.1]} 51...
Rb3 {[%clk 0:00:07.2]} 52. Rd6 {[%clk 0:00:08.8]} 52... Rxb4+ {[%clk 0:00:07]}
53. Kxh3 {[%clk 0:00:09.3]} 53... Rc4 {[%clk 0:00:06.4]} 54. Rxc6 {[%clk
0:00:09.7]} 54... a5 {[%clk 0:00:06.7]} 55. Kg3 {[%clk 0:00:07.3]} 55... a4
{[%clk 0:00:06.8]} 56. Ra6 {[%clk 0:00:07]} 56... Rxc5 {[%clk 0:00:05.4]} 57.
Rxa4 {[%clk 0:00:06.4]} 57... Kg6 {[%clk 0:00:05.7]} 58. Rg4+ {[%clk 0:00:06.5]}
58... Rg5 {[%clk 0:00:03.9]} 59. Rxg5+ {[%clk 0:00:05.4]} 59... Kxg5 {[%clk
0:00:04.2]} 60. h4+ {[%clk 0:00:06.1]} 60... Kh5 {[%clk 0:00:04.6]} 61. Kh3
{[%clk 0:00:07]} 61... Kh6 {[%clk 0:00:05]} 62. Kg4 {[%clk 0:00:07.1]} 62... Kh7
{[%clk 0:00:05.9]} 63. Kh5 {[%clk 0:00:06.8]} 63... Kh8 {[%clk 0:00:06.1]} 64.
Kg5 {[%clk 0:00:07.4]} 64... Kh7 {[%clk 0:00:06.4]} 65. h5 {[%clk 0:00:08.1]}
65... Kh8 {[%clk 0:00:06.9]} 66. h6 {[%clk 0:00:09]} 66... Kh7 {[%clk
0:00:07.5]} 67. Kh5 {[%clk 0:00:09.1]} 67... Kh8 {[%clk 0:00:07.9]} 68. Kg6
{[%clk 0:00:10]} 68... Kg8 {[%clk 0:00:08.5]} 69. h7+ {[%clk 0:00:10.9]} 69...
Kh8 {[%clk 0:00:09]} 70. Kh6 {[%clk 0:00:11.6]} 1/2-1/2